bitfinex-derivatives/quotes_BTCF0:USTF0_20240917
["timestamp","ask_amount","ask_price","bid_price","bid_amount"]
[1726567078644,0.414175,59017.0,59016.0,0.11116797]
[1726567079349,0.32945,59017.0,59016.0,0.11116797]
[1726567080463,0.244725,59017.0,59016.0,0.21212956]
[1726567080763,0.32945,59017.0,59016.0,0.21212956]
[1726567081256,0.32945,59017.0,59016.0,0.11116797]
[1726567081958,0.32945,59017.0,59016.0,0.19589497]
[1726567082158,0.084721,59020.0,59019.0,0.084718]
[1726567082459,0.084721,59020.0,59019.0,0.32926116]
[1726567083470,0.085721,59020.0,59019.0,0.32926116]
[1726567084356,0.086721,59020.0,59019.0,0.32926116]
[1726567085262,0.171442,59020.0,59019.0,0.32926116]
[1726567085557,0.246721,59020.0,59019.0,0.32926516]
[1726567088258,0.086721,59020.0,59019.0,0.32926516]
[1726567089154,0.086721,59020.0,59014.0,0.13449133]
[1726567089155,0.162,59020.0,59012.0,0.10118847]
[1726567089359,0.3612,59013.0,59006.0,0.0039]
[1726567089663,0.3612,59013.0,59002.0,0.0039]
[1726567089664,0.3608,59011.0,59008.0,0.16]
[1726567089853,0.3608,59011.0,59007.0,0.41497512]
[1726567089854,0.3608,59011.0,59009.0,0.2551]
[1726567090060,0.0004,59013.0,59009.0,0.2551]
[1726567090273,0.3612,59013.0,59012.0,0.0004]
[1726567090863,0.3622,59013.0,59012.0,0.0004]
[1726567091262,0.3632,59013.0,59012.0,0.0004]
[1726567092772,0.447931,59013.0,59012.0,0.0004]
[1726567092968,0.446931,59013.0,59012.0,0.0004]
[1726567093178,0.447931,59013.0,59012.0,0.0004]
[1726567094562,0.607931,59013.0,59012.0,0.0004]
[1726567097974,0.087131,59013.0,59012.0,0.0004]
[1726567098170,0.087131,59013.0,59012.0,0.085132]
[1726567098171,0.0024,59013.0,59012.0,0.085132]
[1726567098366,0.0024,59013.0,59012.0,0.245132]
[1726567099167,0.084729,59015.0,59014.0,0.084729]
[1726567099364,0.084729,59015.0,59014.0,0.21332527]
[1726567100371,0.085729,59015.0,59014.0,0.21332527]
[1726567100576,0.086729,59015.0,59014.0,0.21332527]
[1726567102277,0.532258,59015.0,59014.0,0.12859627]
[1726567102468,0.532258,59015.0,59014.0,0.12857237]
[1726567102671,0.532258,59015.0,59014.0,0.0004]
[1726567108367,0.776987,59015.0,59014.0,0.0004]
[1726567108576,1.885347,59015.0,59014.0,0.0004]
[1726567108877,0.692258,59015.0,59014.0,0.0004]
[1726567109467,0.776986,59015.0,59014.0,0.0004]
[1726567109882,0.692257,59015.0,59014.0,0.0004]
[1726567111572,0.692256,59015.0,59014.0,0.0004]
[1726567111978,0.692256,59015.0,59014.0,0.08460018]
[1726567112665,0.692256,59015.0,59014.0,0.27725936]
[1726567112863,0.692256,59015.0,59014.0,0.19302789]
[1726567113970,0.692256,59015.0,59014.0,0.2772603]
[1726567114169,0.692256,59015.0,59014.0,0.19302789]
[1726567114369,0.692256,59015.0,59014.0,0.27725941]
[1726567114673,0.692256,59015.0,59014.0,0.19302789]
[1726567115177,0.692256,59015.0,59014.0,0.27725729]
[1726567116075,0.5228,59015.0,59008.0,0.10111005]
[1726567116275,0.5228,59015.0,59006.0,0.08474]
[1726567116276,0.084739,59007.0,59006.0,0.08474]
[1726567116483,0.245139,59007.0,59006.0,0.08474]
[1726567116682,0.244739,59007.0,59006.0,0.08474]
[1726567117786,0.001,59007.0,59006.0,0.18585005]
[1726567118084,0.001,59007.0,59006.0,0.08474]
[1726567118387,0.085739,59007.0,59006.0,0.08474]
[1726567118568,0.085739,59007.0,59006.0,0.21207084]
[1726567118882,0.170478,59007.0,59006.0,0.08474]
[1726567119383,0.171478,59007.0,59006.0,0.08474]
[1726567120981,0.084745,59003.0,59002.0,0.21244552]
[1726567121172,0.32989,59003.0,59002.0,0.1114]
[1726567121881,0.32989,59003.0,58995.0,0.00254258]
[1726567121882,0.084751,58999.0,58995.0,0.00254258]
[1726567122180,0.169504,58998.0,58997.0,0.10105487]
[1726567122378,0.084755,58996.0,58995.0,0.1118615]
[1726567122681,0.085155,58996.0,58995.0,0.08729958]
[1726567123181,0.32991,58996.0,58995.0,0.00254258]
[1726567123983,0.33091,58996.0,58995.0,0.00254258]
[1726567124489,0.246155,58996.0,58995.0,0.08729958]
[1726567125588,0.246155,58996.0,58993.0,0.12452131]
[1726567125589,0.084758,58994.0,58993.0,0.12452131]
[1726567125785,0.085158,58994.0,58993.0,0.20928131]
[1726567126184,0.085158,58994.0,58993.0,0.27654893]
[1726567126580,0.445958,58994.0,58993.0,0.20928131]
[1726567126986,0.445958,58994.0,58993.0,0.27654893]
[1726567127192,0.447958,58994.0,58993.0,0.27654893]
[1726567128079,0.447958,58994.0,58993.0,0.2765334]
[1726567128279,0.3632,58994.0,58993.0,0.20928131]
[1726567130977,0.3632,58994.0,58993.0,0.3163033]
[1726567133381,0.3632,58994.0,58993.0,0.4010633]
[1726567134995,0.0024,58994.0,58993.0,0.4010633]
[1726567135182,0.0024,58994.0,58993.0,0.4858233]
[1726567135790,0.00254289,58997.0,58996.0,0.084755]
[1726567135985,0.00254289,58997.0,58996.0,0.27693199]
[1726567136290,0.3608,58999.0,58998.0,0.254256]
[1726567136489,0.3608,58999.0,58998.0,0.52167799]
[1726567136689,0.3608,58999.0,58998.0,0.62273286]
[1726567137505,0.3608,58999.0,58998.0,0.52167799]
[1726567137993,0.3618,58999.0,58998.0,0.52167799]
[1726567138187,0.3618,58999.0,58998.0,0.62273286]
[1726567138386,0.606551,58999.0,58998.0,0.19217399]
[1726567140990,0.607551,58999.0,58998.0,0.19417399]
[1726567143707,0.607551,58999.0,58998.0,0.19416289]
[1726567145303,0.607551,58999.0,58998.0,0.29521776]
[1726567145603,0.607551,58999.0,58998.0,0.19416289]
[1726567145604,0.246751,58999.0,58998.0,0.19416289]
[1726567146205,0.246751,58999.0,58998.0,0.29521776]
[1726567147492,0.246751,58999.0,58998.0,0.19416289]
[1726567147694,0.331502,58999.0,58998.0,0.19416289]
[1726567148094,0.331502,58999.0,58998.0,0.29521776]
[1726567148490,0.331502,58999.0,58998.0,0.19416289]
[1726567150106,0.692302,58999.0,58998.0,0.19416289]
[1726567152298,0.692302,58999.0,58998.0,0.10941089]
[1726567154104,0.692302,58999.0,58998.0,0.21046576]
[1726567154600,0.692302,58999.0,58998.0,0.10941089]
[1726567155200,0.692302,58999.0,58998.0,0.21046576]
[1726567157506,0.692302,58999.0,58998.0,0.10941089]
[1726567157710,0.776053,58999.0,58998.0,0.10941089]
[1726567158305,0.776053,58999.0,58998.0,0.19370245]
[1726567158802,0.776053,58999.0,58998.0,0.08669156]
[1726567159202,0.776053,58999.0,58998.0,0.0024]
[1726567159612,1.884533,58999.0,58998.0,0.0024]
[1726567160506,1.884533,58999.0,58998.0,0.06976082]
[1726567160701,0.16951,58996.0,58994.0,0.08429156]
[1726567160904,1.63028,58999.0,58991.0,0.084762]
[1726567160905,0.084761,58992.0,58991.0,0.084762]
[1726567161102,0.084761,58992.0,58991.0,0.08429156]
[1726567161103,0.690725,58992.0,58991.0,0.08429156]
[1726567161305,0.605561,58992.0,58989.0,0.16905656]
[1726567161505,0.085164,58990.0,58989.0,0.084765]
[1726567161799,0.084164,58990.0,58989.0,0.084765]
[1726567163110,0.084164,58990.0,58989.0,0.16905656]
[1726567163111,0.0004,58990.0,58989.0,0.16905656]
[1726567163313,0.00236,58992.0,58991.0,0.085362]
[1726567163506,0.001,58992.0,58991.0,0.19194606]
[1726567163707,0.0876999,58995.0,58994.0,0.084758]
[1726567163708,0.0029429,58995.0,58994.0,0.084758]
[1726567163908,0.0029429,58995.0,58994.0,0.19094206]
[1726567164216,0.0029429,58995.0,58994.0,0.19134206]
[1726567164401,0.0025429,58995.0,58994.0,0.19134206]
[1726567165011,0.0025429,58995.0,58994.0,0.27610006]
[1726567165217,0.0025429,58995.0,58994.0,0.37701036]
[1726567165415,0.0035429,58995.0,58994.0,0.19134206]
[1726567165611,0.0035429,58995.0,58994.0,0.27610006]
[1726567166005,0.0045429,58995.0,58994.0,0.27810006]
[1726567166205,0.0045429,58995.0,58994.0,0.37900886]
[1726567166405,0.0045429,58995.0,58994.0,0.37901242]
[1726567166807,0.084735,59011.0,59008.0,0.084738]
[1726567167006,0.16,59013.0,59008.0,0.0004]
[1726567167311,0.084737,59010.0,59009.0,0.084736]
[1726567168211,0.084737,59010.0,59009.0,0.1688012]
[1726567168407,0.084737,59010.0,59009.0,0.084736]
[1726567170616,0.084737,59010.0,59009.0,0.087736]
[1726567171315,0.244731,59013.0,59012.0,0.084732]
[1726567171507,0.08726882,59016.0,59015.0,0.084728]
[1726567171705,0.45666294,59016.0,59015.0,0.085128]
[1726567171910,0.09586294,59016.0,59015.0,0.084728]
[1726567172302,0.09586294,59016.0,59012.0,0.0004]
[1726567172303,0.084731,59013.0,59012.0,0.085132]
[1726567172509,0.245131,59013.0,59012.0,0.085132]
[1726567172912,0.1604,59013.0,59012.0,0.085132]
[1726567173422,0.1624,59013.0,59012.0,0.085132]
[1726567174119,0.1634,59013.0,59012.0,0.085132]
[1726567176325,0.0034,59013.0,59012.0,0.445932]
[1726567176510,0.0034,59013.0,59012.0,0.530664]
[1726567176821,0.0034,59013.0,59012.0,0.80430682]
[1726567177119,0.0034,59013.0,59012.0,0.72024162]
[1726567177315,0.0034,59013.0,59012.0,0.699243]
[1726567177722,0.0034,59013.0,59012.0,0.614511]
[1726567178310,0.0034,59013.0,59012.0,0.530664]
[1726567180020,0.00254182,59016.0,59015.0,0.084728]
[1726567180213,0.00254182,59016.0,59015.0,0.169856]
[1726567180414,0.05014273,59016.0,59015.0,0.169856]
[1726567181329,0.05514273,59016.0,59015.0,0.169856]
[1726567181814,0.05514273,59016.0,59015.0,0.254584]
[1726567182222,0.05914273,59016.0,59015.0,0.254584]
[1726567182729,0.00654182,59016.0,59015.0,0.254584]
[1726567183025,0.00254182,59016.0,59015.0,0.259584]
[1726567184232,0.00254182,59016.0,59015.0,0.26807159]
[1726567184523,0.10374553,59016.0,59015.0,0.26807159]
[1726567184712,0.00254182,59016.0,59015.0,0.26807159]
[1726567185126,0.10374338,59016.0,59015.0,0.26807159]
[1726567185714,0.00254182,59016.0,59015.0,0.18334359]
[1726567185916,0.10374338,59016.0,59015.0,0.18334359]
[1726567187121,0.00254182,59016.0,59015.0,0.18334359]
[1726567190725,0.16,59018.0,59017.0,0.084725]
[1726567190925,0.16,59018.0,59017.0,0.085125]
[1726567191730,0.084737,59009.0,58997.0,0.10053317]
[1726567191924,0.3612,58998.0,58991.0,0.00088]
[1726567192122,0.1696,58998.0,58991.0,0.1047]
[1726567192325,0.1686,58998.0,58991.0,0.1047]
[1726567193030,0.1686,58998.0,58997.0,0.003]
[1726567193031,0.1696,58998.0,58997.0,0.003]
[1726567193528,0.1692,58998.0,58997.0,0.003]
[1726567193937,0.1702,58998.0,58991.0,0.11825244]
[1726567194229,0.414953,58998.0,58993.0,0.05032688]
[1726567194422,0.1702,58998.0,58993.0,0.05032688]
[1726567194733,0.16,58994.0,58993.0,0.05032688]
[1726567194934,0.244758,58994.0,58993.0,0.05032688]
[1726567196328,0.245758,58994.0,58993.0,0.05032688]
[1726567197530,0.08476,58993.0,58992.0,0.05032688]
[1726567197735,0.08516,58993.0,58992.0,0.05032688]
[1726567198351,0.084761,58992.0,58991.0,0.0587108]
[1726567198549,0.085161,58992.0,58991.0,0.0587108]
[1726567199351,0.085161,58992.0,58991.0,0.00838392]
[1726567199649,0.085161,58992.0,58991.0,0.05032688]
[1726567199840,0.086161,58992.0,58991.0,0.05032688]
[1726567200046,0.087161,58992.0,58991.0,0.05032688]
[1726567200240,0.084762,58991.0,58990.0,0.36911216]
[1726567200544,0.169924,58991.0,58990.0,0.3608]
[1726567201054,0.0004,58991.0,58990.0,0.3608]
[1726567202153,0.002,58992.0,58990.0,0.3608]
[1726567202350,0.002,58992.0,58991.0,0.114]
[1726567202558,0.08475,59000.0,58991.0,1.32501417]
[1726567202746,0.08475,59000.0,58999.0,0.0004]
[1726567203749,0.08575,59000.0,58999.0,0.0004]
[1726567204350,0.001,59000.0,58999.0,0.50888]
[1726567204756,0.001,59000.0,58999.0,0.593631]
[1726567205262,0.001,59000.0,58999.0,0.60232159]
[1726567205461,0.084743,59005.0,58999.0,0.60232159]
[1726567205761,0.084743,59005.0,59004.0,0.05064422]
[1726567206256,0.0039,59018.0,59004.0,1.26884]
[1726567206446,0.08472,59021.0,59012.0,0.5208]
[1726567206447,0.084727,59016.0,59012.0,0.5208]
[1726567206651,0.084727,59016.0,59013.0,0.1579284]
[1726567206847,0.084727,59016.0,59014.0,0.0502284]
[1726567207149,0.084728,59015.0,59014.0,0.0502284]
[1726567207654,0.084729,59014.0,59013.0,0.1579284]
[1726567207847,0.084729,59014.0,59004.0,0.003]
[1726567207848,0.084742,59005.0,59004.0,0.003]
[1726567208048,0.085142,59005.0,59004.0,0.003]
[1726567208260,0.08474,59007.0,59004.0,0.003]
[1726567208451,0.08474,59007.0,59006.0,0.0004]
[1726567208851,0.16,59011.0,59006.0,0.0004]
[1726567209052,0.080739,59007.0,59006.0,0.0004]
[1726567209357,0.001,59007.0,59004.0,0.001]
[1726567209656,0.001,59007.0,59006.0,0.002]
[1726567210263,0.084732,59013.0,59006.0,0.163]
[1726567210462,0.36268,59014.0,59012.0,0.0004]
[1726567210661,0.0004,59014.0,59013.0,0.0004]
[1726567210866,0.0004,59014.0,59012.0,0.1163]
[1726567211170,0.0004,59013.0,59012.0,0.201032]
[1726567211858,0.0004,59013.0,59012.0,0.315532]
[1726567212962,0.0054,59013.0,59012.0,0.315532]
[1726567213465,0.0104,59013.0,59012.0,0.315532]
[1726567215762,0.16,59026.0,59012.0,1.33916]
[1726567215964,0.084715,59025.0,59024.0,0.084715]
[1726567216160,0.084715,59025.0,59022.0,0.3608]
[1726567216354,0.0004,59023.0,59022.0,0.445518]
[1726567217062,0.084715,59024.0,59022.0,0.445518]
[1726567217268,0.084715,59024.0,59023.0,0.0004]
[1726567217568,0.084715,59024.0,59023.0,0.085116]
[1726567217763,0.084715,59024.0,59023.0,0.0004]
[1726567219060,0.084715,59024.0,59023.0,0.0014]
[1726567219061,0.090715,59024.0,59023.0,0.0014]
[1726567220571,0.094715,59024.0,59023.0,0.0014]
[1726567221066,0.096715,59024.0,59023.0,0.0024]
[1726567222567,0.181431,59024.0,59023.0,0.0024]
[1726567224878,0.266147,59024.0,59023.0,0.0024]
[1726567225676,0.626947,59024.0,59023.0,0.0024]
[1726567228669,0.266147,59024.0,59023.0,0.0024]
[1726567228867,0.626947,59024.0,59023.0,0.0024]
[1726567229580,0.266147,59024.0,59023.0,0.0024]
[1726567229776,0.626947,59024.0,59023.0,0.0024]
[1726567230675,0.266147,59024.0,59023.0,0.0024]
[1726567230879,0.626947,59024.0,59023.0,0.0024]
[1726567234980,0.711663,59024.0,59023.0,0.0024]
[1726567235183,0.711663,59024.0,59023.0,1e-06]
[1726567235374,0.254184,59015.0,59014.0,0.00254169]
[1726567235686,0.615384,59015.0,59014.0,0.00254169]
[1726567237170,0.530656,59015.0,59014.0,0.00254169]
[1726567237478,0.530656,59015.0,59014.0,0.08727069]
[1726567237688,0.530656,59015.0,59014.0,0.09527069]
[1726567237871,0.085128,59015.0,59014.0,0.1621462]
[1726567238077,0.0004,59015.0,59014.0,0.44032695]
[1726567238279,0.0004,59015.0,59014.0,0.35673026]
[1726567238778,0.0014,59015.0,59014.0,0.34873026]
[1726567239087,0.0024,59015.0,59014.0,0.34868152]
[1726567239385,0.0024,59015.0,59014.0,0.35268152]
[1726567239386,0.0014,59015.0,59014.0,0.35268152]
[1726567239594,0.0014,59015.0,59014.0,0.36139258]
[1726567240579,0.0004,59015.0,59014.0,0.36539258]
[1726567240780,0.0004,59015.0,59014.0,0.36542911]
[1726567241085,0.0004,59015.0,59014.0,0.46588163]
[1726567241689,0.0004,59015.0,59014.0,0.36542911]
[1726567242083,0.0004,59015.0,59014.0,0.36142911]
[1726567242281,0.0004,59015.0,59014.0,0.84715367]
[1726567242685,0.0004,59015.0,59014.0,0.84415367]
[1726567243181,0.084724,59018.0,59016.0,0.084726]
[1726567243484,0.084724,59018.0,59017.0,0.32204978]
[1726567244592,0.086724,59018.0,59017.0,0.32204978]
[1726567244786,0.089724,59018.0,59017.0,0.32204978]
[1726567244973,0.003,59018.0,59017.0,0.40677478]
[1726567245281,0.006,59018.0,59017.0,0.40677478]
[1726567247173,0.090724,59018.0,59017.0,0.40677478]
[1726567247378,0.090724,59018.0,59017.0,0.27172876]
[1726567248778,0.006,59018.0,59017.0,0.204525]
[1726567253998,0.175448,59018.0,59017.0,0.1198]
[1726567254195,0.175448,59018.0,59017.0,0.18702969]
[1726567254397,0.175448,59018.0,59017.0,0.30547385]
[1726567254607,0.175448,59018.0,59017.0,0.30551997]
[1726567254893,0.175448,59018.0,59017.0,0.22151527]
[1726567255397,0.175448,59018.0,59017.0,0.08444793]
[1726567255398,0.536248,59018.0,59017.0,0.08444793]
[1726567255596,0.536248,59018.0,59017.0,0.0004]
[1726567258086,0.620972,59018.0,59017.0,0.0004]
[1726567258287,0.536248,59018.0,59017.0,0.0004]
[1726567259703,0.006,59018.0,59017.0,0.085125]
[1726567259889,0.006,59018.0,59017.0,0.29760982]
[1726567260096,0.006,59018.0,59017.0,0.39841224]
[1726567260294,0.006,59018.0,59017.0,0.29760982]
[1726567260503,0.3608,59023.0,59022.0,0.084718]
[1726567260696,0.0025414,59027.0,59022.0,0.46247651]
[1726567260898,0.01110408,59027.0,59026.0,0.0004]
[1726567261094,0.01110408,59027.0,59023.0,0.21887651]
[1726567261095,0.0872524,59027.0,59025.0,0.08403358]
[1726567261397,0.0004,59026.0,59025.0,0.08403358]
[1726567261901,0.085113,59026.0,59024.0,0.08403358]
[1726567262091,0.0004,59025.0,59023.0,0.20163358]
[1726567262295,0.084715,59024.0,59023.0,0.08403358]
[1726567262504,0.0004,59024.0,59023.0,0.18536774]
[1726567262699,0.0004,59025.0,59023.0,0.18536774]
[1726567262905,0.0004,59025.0,59024.0,0.0004]
[1726567263206,0.0004,59025.0,59024.0,0.085115]
[1726567263706,0.0004,59025.0,59024.0,0.206115]
[1726567263900,0.0094,59025.0,59024.0,0.206115]
[1726567265403,0.0194,59025.0,59024.0,0.207115]
[1726567265796,0.0204,59025.0,59024.0,0.208115]
[1726567266193,0.0204,59025.0,59024.0,0.29214858]
[1726567267207,0.0204,59025.0,59024.0,0.39418054]
[1726567267401,0.0204,59025.0,59024.0,0.39417397]
[1726567269512,0.0204,59025.0,59024.0,0.208115]
[1726567269905,0.105114,59025.0,59024.0,0.208115]
[1726567270504,0.105114,59025.0,59024.0,0.1234]
[1726567274106,0.20667043,59025.0,59024.0,0.1234]
[1726567275003,0.29138443,59025.0,59024.0,0.1234]
[1726567275204,0.189828,59025.0,59024.0,0.1234]
[1726567276399,0.189828,59025.0,59024.0,0.20743358]
[1726567276603,0.189828,59025.0,59024.0,0.39418767]
[1726567276604,0.105114,59025.0,59024.0,0.39418767]
[1726567276804,0.189828,59025.0,59024.0,0.39418767]
[1726567277001,0.189828,59025.0,59024.0,0.30947267]
[1726567280205,0.189828,59025.0,59024.0,0.20743358]
[1726567280810,0.189828,59025.0,59024.0,0.30948457]
[1726567281213,0.189828,59025.0,59024.0,0.20743358]
[1726567281717,0.189828,59025.0,59024.0,0.30948392]
[1726567283718,0.189828,59025.0,59024.0,0.30950024]
[1726567284821,0.189828,59025.0,59024.0,0.1234]
[1726567291613,0.189828,59025.0,59024.0,0.22547606]
[1726567295027,0.189828,59025.0,59024.0,0.22541784]
[1726567296418,0.189828,59025.0,59022.0,0.0004]
[1726567296419,1.542822,59025.0,59022.0,0.0004]
[1726567296622,1.542822,59025.0,59014.0,0.00254169]
[1726567296623,0.16945,59017.0,59016.0,0.10087435]
[1726567296924,0.084728,59015.0,59014.0,0.00254169]
[1726567297224,0.085128,59015.0,59014.0,0.20821687]
[1726567297728,0.084128,59015.0,59014.0,0.20821687]
[1726567298226,0.0004,59015.0,59014.0,0.20821687]
[1726567298427,0.0004,59023.0,59014.0,1.23164157]
[1726567298636,0.085117,59023.0,59022.0,0.5212]
[1726567298818,0.085117,59023.0,59022.0,0.73430408]
[1726567299138,0.085117,59023.0,59022.0,0.6335]
[1726567299524,0.084717,59023.0,59022.0,0.6335]
[1726567299733,0.092717,59023.0,59022.0,0.6345]
[1726567300122,0.008,59023.0,59022.0,0.719218]
[1726567301232,0.016,59023.0,59022.0,0.719218]
[1726567301626,0.016,59023.0,59022.0,0.832418]
[1726567301939,0.016,59023.0,59022.0,0.91640577]
[1726567302239,0.016,59023.0,59022.0,0.832418]
[1726567302421,0.016,59023.0,59022.0,0.92504901]
[1726567302823,0.016,59023.0,59022.0,0.84108411]
[1726567303423,0.016,59023.0,59022.0,0.92503824]
[1726567306132,0.016,59023.0,59022.0,1.37055624]
[1726567306434,0.016,59023.0,59022.0,1.37060501]
[1726567306829,0.016,59023.0,59022.0,1.40718299]
[1726567309949,0.016,59023.0,59022.0,1.34718299]
[1726567310144,0.016,59023.0,59022.0,1.26246499]
[1726567310338,0.016,59023.0,59022.0,1.34718299]
[1726567311352,0.0078,59037.0,59029.0,0.084708]
[1726567311542,0.084694,59039.0,59037.0,0.084696]
[1726567311740,0.09301134,59039.0,59038.0,0.08434227]
[1726567311946,0.09301134,59039.0,59038.0,0.08394227]
[1726567312142,0.09301134,59039.0,59038.0,0.16863727]
[1726567312344,0.13053954,59045.0,59038.0,0.10167448]
[1726567312543,0.00933954,59045.0,59044.0,0.1004]
[1726567313237,0.006799,59045.0,59044.0,0.185086]
[1726567313645,0.013799,59045.0,59044.0,0.185086]
[1726567313951,0.013799,59045.0,59044.0,0.245086]
[1726567314345,0.020799,59045.0,59044.0,0.246086]
[1726567314547,0.030799,59045.0,59044.0,0.246086]
[1726567314944,0.020799,59045.0,59044.0,0.246086]
[1726567315148,0.021799,59045.0,59044.0,0.246086]
[1726567315754,0.105484,59045.0,59044.0,0.0014]
[1726567315950,0.091484,59045.0,59044.0,0.0024]
[1726567316146,0.092484,59045.0,59044.0,0.0024]
[1726567316348,0.092484,59045.0,59044.0,0.087086]
[1726567316551,0.092484,59045.0,59044.0,0.15404506]
[1726567317055,0.091484,59045.0,59044.0,0.15704506]
[1726567317250,0.091484,59045.0,59044.0,0.31704506]
[1726567317751,0.091484,59045.0,59044.0,0.31504506]
[1726567317951,0.091484,59045.0,59044.0,0.31904506]
[1726567318352,0.091484,59045.0,59044.0,0.252086]
[1726567318652,0.091484,59045.0,59044.0,0.248086]
[1726567318851,0.091484,59045.0,59044.0,0.250086]
[1726567319647,0.091484,59045.0,59044.0,0.248086]
[1726567319849,0.091484,59045.0,59044.0,0.251086]
[1726567320449,0.091484,59045.0,59044.0,0.1634]
[1726567320853,0.091484,59045.0,59044.0,0.248086]
[1726567321262,0.091484,59045.0,59044.0,0.249086]
[1726567322455,0.091484,59045.0,59044.0,0.248086]
[1726567322953,0.091484,59045.0,59044.0,0.246086]
[1726567323163,0.091484,59045.0,59044.0,0.247086]
[1726567324055,0.091484,59045.0,59044.0,0.248086]
[1726567324451,0.091484,59045.0,59044.0,0.0034]
[1726567324648,0.091484,59045.0,59044.0,0.247086]
[1726567325450,0.091484,59045.0,59044.0,0.248086]
[1726567326861,0.091484,59045.0,59044.0,0.249086]
[1726567327051,0.091484,59045.0,59044.0,0.248086]
[1726567327557,0.006799,59045.0,59044.0,0.247086]
[1726567327753,0.006799,59045.0,59044.0,0.249086]
[1726567328160,0.006799,59045.0,59044.0,0.247086]
[1726567328358,0.006799,59045.0,59044.0,0.248086]
[1726567328663,0.176169,59045.0,59044.0,0.0014]
[1726567328853,0.1434195,59045.0,59044.0,0.0024]
[1726567330067,0.091484,59045.0,59044.0,0.05358103]
[1726567330257,0.091484,59045.0,59044.0,0.05258103]
[1726567330562,0.091484,59045.0,59044.0,0.249086]
[1726567330969,0.091484,59045.0,59044.0,0.248086]
[1726567331270,0.091484,59045.0,59044.0,0.31504506]
[1726567331569,0.091484,59045.0,59044.0,0.247086]
[1726567333268,0.006799,59045.0,59044.0,0.249086]
[1726567334271,0.006799,59045.0,59044.0,0.333772]
[1726567334468,0.006799,59045.0,59044.0,0.779258]
[1726567334659,0.006799,59045.0,59044.0,0.99891863]
[1726567336966,0.006799,59045.0,59044.0,0.898158]
[1726567337975,0.05908764,59045.0,59044.0,0.898158]
[1726567340162,0.05908764,59045.0,59044.0,0.537358]
[1726567340362,0.05908764,59045.0,59044.0,0.898158]
[1726567340770,0.11817593,59046.0,59045.0,0.084685]
[1726567340969,0.11817593,59046.0,59045.0,0.762935]
[1726567341170,0.11817593,59046.0,59045.0,1.55493052]
[1726567341372,0.11817593,59046.0,59045.0,1.47024552]
[1726567342877,0.11817593,59046.0,59045.0,0.87124552]
[1726567343067,0.11817593,59046.0,59045.0,1.47124552]
[1726567343270,0.11817593,59046.0,59045.0,0.87124552]
[1726567343469,0.11817593,59046.0,59045.0,1.47224552]
[1726567343668,0.11817593,59046.0,59045.0,0.17217]
[1726567344579,0.11837264,59046.0,59045.0,0.17217]
[1726567344975,0.084673,59054.0,59052.0,0.084674]
[1726567345178,0.769344,59054.0,59053.0,0.0008]
[1726567345380,0.084675,59052.0,59051.0,0.06712161]
[1726567345575,0.084682,59047.0,59046.0,0.08387165]
[1726567345892,0.084683,59046.0,59045.0,0.002]
[1726567346078,0.169366,59046.0,59045.0,0.002]
[1726567346387,0.676446,59046.0,59045.0,0.001]
[1726567347187,0.676446,59046.0,59042.0,0.08387165]
[1726567347188,0.070688,59043.0,59042.0,0.08387165]
[1726567347991,0.084692,59040.0,59039.0,0.16836611]
[1726567348201,0.084692,59040.0,59039.0,0.25306011]
[1726567348380,0.084092,59040.0,59039.0,0.25306011]
[1726567348582,0.084092,59040.0,59039.0,0.16836611]
[1726567349579,0.169784,59040.0,59039.0,0.01336611]
[1726567350086,0.169784,59040.0,59039.0,0.005]
[1726567350295,0.164784,59040.0,59039.0,0.005]
[1726567350790,0.164784,59040.0,59039.0,0.012]
[1726567350791,0.165784,59040.0,59039.0,0.012]
[1726567351190,0.165784,59040.0,59039.0,0.09590107]
[1726567351789,0.165784,59040.0,59039.0,0.012]
[1726567352999,0.17430309,59040.0,59039.0,0.012]
[1726567354491,1.39832309,59040.0,59039.0,0.012]
[1726567354695,1.48301509,59040.0,59039.0,0.012]
[1726567356003,1.64301509,59040.0,59039.0,0.012]
[1726567356390,1.64301509,59040.0,59039.0,0.06229937]
[1726567356588,0.169408,59032.0,59031.0,0.08390107]
[1726567356787,0.085104,59032.0,59031.0,0.00856418]
[1726567356990,0.5082,59031.0,59023.0,0.10064567]
[1726567357293,0.5082,59031.0,59012.0,0.11789175]
[1726567357294,0.169442,59020.0,59019.0,0.00254153]
[1726567357496,0.085121,59020.0,59019.0,0.00254153]
[1726567357692,0.084721,59020.0,59019.0,0.00254153]
[1726567358003,0.070721,59020.0,59019.0,0.00254153]
[1726567358198,0.070721,59020.0,59019.0,0.08726353]
[1726567358793,0.070721,59020.0,59019.0,0.00254153]
[1726567359097,0.071721,59020.0,59019.0,0.00254153]
[1726567359595,0.157442,59020.0,59019.0,0.00254153]
[1726567360701,1.265762,59020.0,59019.0,0.00254153]
[1726567361192,1.265762,59020.0,59016.0,0.00254154]
[1726567361193,0.254175,59017.0,59016.0,0.00254154]
[1726567361496,0.69065,59017.0,59006.0,0.0039]
[1726567361692,0.69065,59017.0,59005.0,0.3542]
[1726567361693,0.085139,59007.0,59005.0,0.438941]
[1726567361894,0.085141,59006.0,59005.0,0.44769206]
[1726567362091,0.084741,59006.0,59005.0,0.3542]
[1726567362294,0.084745,59003.0,59002.0,0.0025419]
[1726567362499,0.085145,59003.0,59002.0,0.0025419]
[1726567363413,0.16989,59003.0,59002.0,0.0025419]
[1726567363602,0.17089,59003.0,59002.0,0.0025419]
[1726567364494,0.086145,59003.0,59002.0,0.0025419]
[1726567364993,0.087145,59003.0,59002.0,0.0025419]
[1726567371507,0.087145,59003.0,59002.0,0.0872889]
[1726567372599,0.0024,59003.0,59002.0,0.0872889]
[1726567372911,0.3608,59004.0,59003.0,0.084745]
[1726567373109,0.3608,59004.0,59003.0,0.245145]
[1726567373409,0.3608,59004.0,59003.0,0.362745]
[1726567374102,0.3628,59004.0,59003.0,0.362745]